Cogmind - Beta 16 @@@ ROGUE MODE // 2025.11.02 @ 19:18:58 Player: JuustuToug Result: Destroyed by G-73 Enforcer with Phase Gun Performance ------------- Evolutions (7) 3500 Regions Visited (20) 4000 Robots Destroyed (277) 1385 Value Destroyed (11691) 11691 Prototype IDs (70) 1400 Alien Tech Used (1) 200 Bonus (8647) 8647 TOTAL SCORE: 30823 Bonus ------- Triggered Max Security 1000 High Alert Combat Kills 2567 Follower Combat Kills 1941 Entered Garrisons 600 Entered DSFs 500 Aligned with FarCom 300 Acquired ECA 300 Met Warlord at Base 500 MAIN.C Attacked Warlord 500 Scanned by Researcher 500 Friendly Fire -61 Cogmind --------- Core Integrity 0/1300 Matter 77/300 Energy 67/100 System Corruption 31% Temperature Cool (4) Movement Core (50) Location -3/Testing Parts ------- > --- POWER (2) -------- (None) > --- PROPULSION (6) --- (None) > --- UTILITY (10) ----- Enhanced Optical Array > --- WEAPON (4) ------- (None) > --- INVENTORY (5) ---- Vortex Shotgun (50) Peak State ------------ > --- POWER ------------ Neutrino Core Neutrino Core > --- PROPULSION ------- Flexi-carbon Leg Flexi-carbon Leg Myomer Leg Impulse Thruster Cooled Impulse Thruster Cooled Impulse Thruster > --- UTILITY ---------- Coolant Network Medium Storage Unit Advanced Signal Interpreter Advanced Melee Analysis Suite Layered Light Armor Plating Graphene Brace Hacking Suite Advanced Hacking Suite Advanced Hacking Suite > --- WEAPON ----------- Power Sword Phasing Sabre Phasing Sabre Phasing Sabre > --- INVENTORY -------- Light Antimatter Reactor Light Antimatter Reactor Antigrav System Transmission Jammer Advanced Reaction Control System Improved Medium Armor Plating Cooled Plasma Rifle Vortex Shotgun Advanced Remote Datajack Impact Mace [Rating: 138] Favorites ----------- Power Light Ion Engine Engine Light Ion Engine Power Core Neutrino Core Reactor Light Antimatter Reactor Propulsion Armored Treads Treads Armored Treads Leg Flexi-carbon Leg Wheel Armored Wheel Hover Unit Antigrav System Flight Unit Cooled Impulse Thruster Utility High-capacity Storage Unit Device Graphene Brace Storage High-capacity Storage Unit Processor Improved Targeting Computer Hackware Advanced Hacking Suite Protection Improved Medium Armor Plating Weapon XL Autogun Subcomponent Energy Gun Small Laser Energy Cannon Plasma Cannon Ballistic Gun XL Autogun Subcomponent Ballistic Cannon Perforator Launcher Heavy Missile Launcher Impact Weapon Impact Mace Slashing Weapon Power Sword Build | -11 -10 -10 -10 -9 -8 -8 -8 -7 -7 -6 -6 -6 -5 -5 -5 -4 -4 -4 -3 -3 ------- Run | Yrd Mat Min Exi Min Mat Gar Mat Fac Gar Fac DSF Gar Fac Upp War Pro Fac Ext Res Tes Slots Evolved 14 | . . . . . 4 . . 2 . 2 . . 2 . . . 2 . 2 . Power 1 | . . . . . . . . . . . . . . . . . 1 . . . Propulsion 4 | . . . . . . . . 1 . 1 . . 1 . . . 1 . . . Utility 7 | . . . . . 2 . . 1 . 1 . . 1 . . . . . 2 . Weapon 2 | . . . . . 2 . . . . . . . . . . . . . . . Parts Attached 207 | 7 15 2 1 7 26 3 6 2 10 2 7 8 40 6 16 1 7 25 12 4 Power 28 | 1 1 . . . 5 1 2 . 2 . . . 5 . 2 . 1 5 2 1 Engine 15 | 1 1 . . . 5 1 2 . 2 . . . 1 . 1 . . 1 . . Core 7 | . . . . . . . . . . . . . 4 . . . . 3 . . Reactor 6 | . . . . . . . . . . . . . . . 1 . 1 1 2 1 Propulsion 60 | 2 6 . . . 6 . 1 . 1 1 6 3 14 1 5 1 1 9 2 1 Treads 28 | 2 4 . . . 4 . 1 . 1 1 6 3 6 . . . . . . . Leg 11 | . 2 . . . . . . . . . . . . . 1 . . 8 . . Wheel 2 | . . . . . 2 . . . . . . . . . . . . . . . Hover 11 | . . . . . . . . . . . . . 5 . 2 1 1 . 2 . Flight 8 | . . . . . . . . . . . . . 3 1 2 . . 1 . 1 Utility 60 | 2 3 . 1 2 5 1 1 2 2 1 1 2 11 4 5 . 5 6 6 . Device 23 | 1 1 . . 1 2 . . . 1 1 . 1 5 3 1 . 1 1 4 . Storage 5 | 1 2 . . . . . 1 . . . . . . . 1 . . . . . Processor 12 | . . . . . 1 . . 1 . . . . 5 . 2 . 2 . 1 . Hackware 6 | . . . . . . . . . . . . . 1 . . . 2 2 1 . Protection 14 | . . . 1 1 2 1 . 1 1 . 1 1 . 1 1 . . 3 . . Artifact . | . . . . . . . . . . . . . . . . . . . . . Weapon 59 | 2 5 2 . 5 10 1 2 . 5 . . 3 10 1 4 . . 5 2 2 Energy Gun 16 | 2 2 . . 3 3 . 1 . . . . . . . 3 . . 1 . 1 Energy Cannon 9 | . . . . . 1 . 1 . . . . 1 5 . . . . . 1 . Ballistic Gun 20 | . 3 1 . 1 5 1 . . 4 . . 2 2 . 1 . . . . . Ballistic Cannon 1 | . . . . . . . . . . . . . . . . . . . . 1 Launcher 4 | . . 1 . 1 1 . . . 1 . . . . . . . . . . . Special Weapon . | . . . . . . . . . . . . . . . . . . . . . Impact Weapon 1 | . . . . . . . . . . . . . . . . . . 1 . . Slashing Weapon 8 | . . . . . . . . . . . . . 3 1 . . . 3 1 . Piercing Weapon . | . . . . . . . . . . . . . . . . . . . . . Special Melee Weapon . | . . . . . . . . . . . . . . . . . . . . . Unidentified Prototypes 30 | . . . . 1 3 . 4 . 1 . 1 . 6 1 7 . 1 2 1 2 Corrupted Parts 2 | . . . . . . . . . . . . . . . . . . 2 . . System Corruption 11 | . . . . . . . . . . . . . . . . . . 11 . . Parts Lost 60 | . 4 . . . 2 . 1 . . . . 5 19 4 2 1 2 4 10 6 Power 7 | . 1 . . . 1 . . . . . . . 2 . 1 . . 1 1 . Propulsion 27 | . 2 . . . 1 . . . . . . 2 9 2 1 1 2 1 5 1 Utility 15 | . . . . . . . . . . . . 1 3 1 . . . 2 4 4 Weapon 11 | . 1 . . . . . 1 . . . . 2 5 1 . . . . . 1 Highest Loss Streak 12 | . 4 . . . 1 . 1 . . . . 2 12 4 2 1 2 2 8 3 To Critical Strikes . | . . . . . . . . . . . . . . . . . . . . . Average Backups 16 | 4 15 20 17 16 16 19 22 23 24 23 24 24 14 4 6 9 9 9 9 2 Power 1 | . 2 2 1 1 . 1 1 1 1 2 2 3 2 1 1 1 2 1 1 . Propulsion 4 | 2 4 7 6 5 4 4 5 5 6 5 6 5 2 . . . . . . . Utility 5 | . 4 7 5 5 5 6 7 6 7 8 8 9 5 1 1 2 3 2 2 1 Weapon 5 | 1 3 4 4 5 5 7 8 10 9 8 8 6 3 . 2 4 3 4 4 1 Tool/Special . | . . . . . . . . . . . . . . . . . . . . . Unused Backups 83 | . 22 . 3 3 15 3 4 3 5 . 4 1 13 . 1 1 1 2 2 . Power 11 | . 3 . 1 . 2 . . . . . . . 3 . 1 . . 1 . . Propulsion 29 | . 10 . 1 1 5 . 3 2 3 . 4 . . . . . . . . . Utility 25 | . 7 . 1 1 5 3 1 . . . . 1 5 . . . 1 . . . Weapon 17 | . 2 . . 1 3 . . 1 2 . . . 5 . . 1 . 1 1 . Tool/Special 1 | . . . . . . . . . . . . . . . . . . . 1 . Average Slot Usage (%) 86 | . 99 100 100 100 99 76 72 75 93 97 100 99 78 59 70 78 67 81 71 28 Engine 8 | . 14 14 14 14 9 9 9 7 6 6 6 6 1 . 2 . . 4 . . Treads 17 | . 25 28 28 28 15 18 18 22 23 25 26 26 15 . . . . . . . Hover 1 | . . . . . . . . . . . . . 4 . 2 10 9 5 6 . Flight 2 | . . . . . . . . . . . . . 2 10 15 16 13 10 11 2 Device 9 | . 14 14 3 . 8 9 9 7 7 11 13 13 10 13 13 11 6 7 8 1 Storage 8 | . 14 14 14 14 9 9 9 7 7 6 6 6 2 . 2 5 5 5 3 . Processor 9 | . . . . . 8 9 9 14 15 13 13 13 16 22 24 27 19 12 9 7 Hackware 1 | . . . . . . . . . . . . . 1 . . . 7 11 14 9 Protection 5 | . . . 10 13 9 9 9 7 7 6 6 6 2 1 . . . 2 2 1 Energy Gun 5 | . 19 14 14 5 9 1 . . . . . . . . . . . . . 3 Energy Cannon 1 | . . . . . 2 . . . . . . 5 6 . . . . . . . Ballistic Gun 12 | . 8 13 14 22 23 11 9 7 24 26 26 20 5 . . . . . . . Slashing Weapon 1 | . . . . . . . . . . . . . 2 6 6 1 4 8 6 . Peak Build Rating 138 | 7 10 10 13 23 40 64 64 70 70 69 81 81 88 63 97 94 96 120 138 67 Average Rating 47 | 6 8 9 11 15 32 58 62 69 62 68 76 74 64 50 69 88 80 90 96 43 On Entrance 51 | . 7 10 10 13 16 40 64 63 70 61 69 81 69 59 51 89 88 71 120 28 Avg Prop Armor Cover (%) 10 | . 8 . . . 6 . . . . . . . 11 10 10 18 20 6 11 . Naked Turns . | . . . . . . . . . . . . . . . . . . . . . Heaviest Build 134 | 15 50 48 50 56 70 75 111 111 111 112 112 117 134 18 23 23 20 61 63 17 Greatest Support 128 | 40 40 40 40 40 40 40 42 62 63 86 120 120 128 14 24 23 20 80 65 15 Greatest Overweight (x) 14 | . 14 1 1 1 5 1 2 1 1 1 1 . 2 2 2 2 4 1 2 5 Average Overweight (x) . | . 1 1 1 1 2 1 1 1 1 1 . . . . . . . . . . Largest Inventory Capacity 25 | 8 20 20 20 20 20 20 25 25 25 25 25 25 25 5 10 10 10 10 10 5 Average Capacity 18 | 7 19 20 20 20 20 20 22 25 25 25 25 25 15 5 7 10 10 10 9 5 Most Carried 25 | 6 20 20 20 20 20 20 25 25 25 25 25 25 25 5 10 10 10 10 10 5 Average Carried 17 | 4 15 20 19 19 19 19 22 23 24 23 24 24 14 4 7 9 9 9 9 2 Final Capacity 25 | 8 20 20 20 20 20 20 25 25 25 25 25 25 5 5 10 10 10 10 5 5 Final Carried 25 | 6 20 20 20 20 20 20 25 25 25 23 25 24 5 5 10 10 9 10 5 1 Class Distribution -------------------- 31% | Mutant 22% | Skirmisher 10% | Gunner 8% | Scavenger-Skirmisher 7% | Scavenger-Gunner 3% | Hacker-Mutant Dominant Class ---------------- Mutant | -10/Materials Mutant | -10/Mines Mutant | -10/Exiles Mutant | -9/Mines Scavenger-Skirmisher | -8/Materials Skirmisher | -8/Garrison Skirmisher | -8/Materials Gunner | -7/Factory Gunner | -7/Garrison Scavenger-Gunner | -6/Factory Gunner | -6/DSF Gunner | -6/Garrison Scavenger-Skirmisher | -5/Factory Ninja | -5/Upper Caves Commander-Scout | -5/Warlord Scout | -4/Proximity Caves Hacker-Sprinter | -4/Factory Scavenger-Gladiator | -4/Extension Hacker-Mutant | -3/Research Hacker-Mutant | -3/Testing Resources | -11 -10 -10 -10 -9 -8 -8 -8 -7 -7 -6 -6 -6 -5 -5 -5 -4 -4 -4 -3 -3 ----------- Run | Yrd Mat Min Exi Min Mat Gar Mat Fac Gar Fac DSF Gar Fac Upp War Pro Fac Ext Res Tes Matter Collected 7959 | 228 300 42 . 224 953 971 1181 215 814 . 388 783 1042 136 180 25 130 326 21 . Remotely 20 | . . . . . . . . . . . . . 20 . . . . . . . Salvage Created 11854 | 37 829 61 . 293 1743 1018 1524 343 1064 . 506 1130 1958 327 . 108 359 533 21 . Parts 611 | 4 46 8 . 15 90 53 87 17 65 . 26 56 79 11 . 8 18 26 2 . Haulers Intercepted 17 | . 2 . . . 6 . 5 . . . 2 . 1 . . . . 1 . . Recyclers Shooed 6 | . 1 2 . 1 . . 1 . . . . . . . . . 1 . . . Parts Field Recycled . | . . . . . . . . . . . . . . . . . . . . . Retrieved Matter . | . . . . . . . . . . . . . . . . . . . . . Parts Self-Destructed 15 | . . . . . . . . . . . . . . 7 . 8 . . . . Prevented . | . . . . . . . . . . . . . . . . . . . . . Parts Restored . | . . . . . . . . . . . . . . . . . . . . . Kills | -11 -10 -10 -10 -9 -8 -8 -8 -7 -7 -6 -6 -6 -5 -5 -5 -4 -4 -4 -3 -3 ------- Run | Yrd Mat Min Exi Min Mat Gar Mat Fac Gar Fac DSF Gar Fac Upp War Pro Fac Ext Res Tes Combat Hostiles Destroyed 189 | . 14 3 . 5 20 23 22 8 23 . 7 23 30 5 . 2 1 3 . . Melee 17 | . . . . . . . . . . . . . 6 5 . 2 1 3 . . Guns 130 | . 13 . . 5 16 23 22 8 22 . 7 11 3 . . . . . . . Cannons 24 | . . . . . 1 . . . . . . 12 11 . . . . . . . AOE 17 | . 1 3 . . 3 . . . 1 . . . 9 . . . . . . . Classes Destroyed 24 | 1 8 . . 1 3 . 3 . 2 . 2 2 1 1 . . . . . . Worker 16 | . 1 . . 1 5 . 1 . . . . . 5 . . . . 3 . . Builder 7 | . 1 1 . 1 1 . 1 . . . . . 1 . . . 1 . . . Tunneler 7 | 2 1 . . 1 . . 1 . . . . . 1 . . . . . 1 . Hauler 17 | . 2 . . . 6 . 5 . . . 2 . 1 . . . . 1 . . Recycler 11 | . . . . . 4 . 2 . . . . . 2 . . . 2 1 . . Mechanic 2 | . . . . . . . 1 . . . . . 1 . . . . . . . Operator 8 | . 3 . . . 1 . 1 . . . . . 2 . . . 1 . . . Watcher 18 | . 3 . . . 4 1 4 . . . . . 5 . . . 1 . . . Swarmer 51 | . 3 3 . . 3 8 6 4 4 . 3 7 5 5 . . . . . . Cutter 2 | . . . . . . . . . 2 . . . . . . . . . . . Saboteur 1 | . . . . . . . . . . . . . 1 . . . . . . . Grunt 80 | . 9 . . 4 6 12 8 1 12 . 1 9 16 . . . . 2 . . Brawler 7 | . . . . . 1 . 3 . . . . 2 1 . . . . . . . Duelist 4 | . . . . . . . 2 . . . . . 2 . . . . . . . Protector 3 | . . . . . . . 1 . . . . 1 1 . . . . . . . Sentry 23 | . . . . 1 9 3 1 3 4 . . . 2 . . . . . . . Demolisher 1 | . . . . . . . . . . . . 1 . . . . . . . . Specialist 1 | . . . . . . . . . . . 1 . . . . . . . . . Hunter 3 | . . . . . 1 . 1 . . . . 1 . . . . . . . . Programmer 8 | . . . . . . . . . 1 . 1 1 2 . . 2 1 . . . Heavy 1 | . . . . . . . . . . . 1 . . . . . . . . . Behemoth 2 | . . . . . . . . . . . . 1 . . . . . 1 . . Subdweller 2 | . 2 . . . . . . . . . . . . . . . . . . . Decomposer 3 | . . . . . . . . . . . . . . 3 . . . . . . Samaritan 2 | . . . . . . . . . . . . . . 2 . . . . . . Savage 1 | . . . . . . 1 . . . . . . . . . . . . . . Guerrilla 1 | . . . . . . 1 . . . . . . . . . . . . . . Best Kill Streak 10 | 1 4 4 . 4 6 6 10 5 4 . 3 6 9 6 . 1 3 2 1 . Combat Bots Only 8 | . 3 3 . 4 5 6 6 5 4 . 3 6 8 6 . 1 1 2 . . Max Kills in Single Turn 4 | 1 2 3 . 2 2 2 2 1 2 . 2 1 4 1 . 1 1 1 1 . Gunslinging 1 | . . . . 1 . . . . . . 1 . . . . . . . . . Exploded 3 | . 1 3 . . 2 . . . 1 . . . 2 . . . . . . . Melee 1 | . . . . . . . . . . . . . 1 1 . 1 1 1 . . Uniques/NPCs Destroyed . | . . . . . . . . . . . . . . . . . . . . . Combat | -11 -10 -10 -10 -9 -8 -8 -8 -7 -7 -6 -6 -6 -5 -5 -5 -4 -4 -4 -3 -3 -------- Run | Yrd Mat Min Exi Min Mat Gar Mat Fac Gar Fac DSF Gar Fac Upp War Pro Fac Ext Res Tes Hostile Shots Fired 1098 | . 81 3 . 4 49 54 42 41 72 . 16 180 241 41 17 18 4 32 124 79 Missed 351 | . 19 1 . 3 13 16 12 21 25 . 3 50 70 10 11 5 1 6 49 36 Hits 747 | . 62 2 . 1 36 38 30 20 47 . 13 130 171 31 6 13 3 26 75 43 Melee 32 | . . . . . . . 2 . 2 . . . 26 . . . . . . 2 Projectile 715 | . 62 2 . 1 36 38 28 20 45 . 13 130 145 31 6 13 3 26 75 41 AOE 7 | . . . . . . . . . 1 . 1 3 . . . . . 1 . 1 Critical Strikes 30 | . 2 . . . 2 2 3 . 1 . 2 2 5 1 . . . 2 6 2 Actively Blocked 12 | . . . . . . . . . . . 2 2 5 1 . . . 2 . . Part Disruptions 2 | . . . . . . . . . . . . . . . . . . . 2 . Damage Taken 13999 | . 836 46 . 11 732 549 404 182 651 . 389 2053 3804 474 110 267 62 722 1802 905 Core 2733 | . 160 . . 11 50 40 16 10 16 . 28 150 600 154 38 124 . 32 913 391 Absorbed by Shields 318 | . . . . . . . . . . . . . . . . . . . . 318 Redirected to Shielding 23 | . . . . . . . . . . . . . . 23 . . . . . . Regen/Repaired (Parts) 802 | . 94 . . . 29 . 342 233 . . . . . . 10 . 94 . . . Core Remaining (%) 70 | 100 . . . 31 . . 80 . 96 . . 79 . . . 8 . 97 . . Volleys Fired 585 | 7 76 4 . 21 65 62 61 12 65 . 20 85 55 . 1 . . 1 2 48 Largest 4 | 2 2 2 . 2 4 4 1 1 4 . 4 4 4 . 1 . . 1 1 1 Hottest 225 | 90 90 63 . 79 179 132 60 60 80 . 80 156 211 . 225 . . 72 72 72 Shots Fired 1474 | 14 151 7 . 42 253 97 61 12 199 . 80 316 188 . 1 . . 1 2 50 Gun 1262 | 14 151 6 . 42 241 97 61 12 198 . 80 237 69 . 1 . . 1 2 50 Cannon 197 | . . . . . 10 . . . . . . 79 108 . . . . . . . Launcher 15 | . . 1 . . 2 . . . 1 . . . 11 . . . . . . . Special . | . . . . . . . . . . . . . . . . . . . . . Kinetic 1000 | . 43 3 . 36 175 86 61 12 198 . 80 237 69 . . . . . . . Thermal 420 | 7 76 3 . 6 76 11 . . . . . 79 108 . 1 . . 1 2 50 Explosive 15 | . . 1 . . 2 . . . 1 . . . 11 . . . . . . . Electromagnetic 39 | 7 32 . . . . . . . . . . . . . . . . . . . Robot Hit Streak 31 | 2 21 6 . 8 15 28 21 24 19 . 31 14 14 . . . . . . . Robot Miss Streak 6 | 4 5 1 . 3 3 6 6 3 3 . 3 5 3 . . . . . . . Penetration Max . | . . . . . . . . . . . . . . . . . . . . . Secondary Targets 6 | . 1 . . 1 1 . . . 1 . 2 . . . . . . . . . Max Gunslinging Chain 1 | . 1 . . 1 1 . . . 1 . 1 . . . . . . . . . Shots Hit Robots 867 | 5 104 6 . 23 157 57 57 12 84 . 51 128 127 17 . 6 9 22 2 . Core Hits 493 | 2 40 5 . 12 69 46 54 13 47 . 17 59 99 10 . 4 3 12 1 . Critical Kills 6 | . . . . 1 3 . . . . . . 1 1 . . . . . . . Critical Parts Destroyed 1 | . . . . . . . . . . . . . 1 . . . . . . . Critical Strikes 27 | . 3 . . 2 12 1 . . . . . 1 3 1 . 1 . 3 . . Burn 13 | . 2 . . 1 9 1 . . . . . . . . . . . . . . Meltdown 1 | . . . . . . . . . . . . . 1 . . . . . . . Destroy 6 | . . . . 1 3 . . . . . . 1 1 . . . . . . . Corrupt 1 | . 1 . . . . . . . . . . . . . . . . . . . Sever 6 | . . . . . . . . . . . . . 1 1 . 1 . 3 . . Melee Attacks 115 | . . . . . . . . . . . . . 26 25 3 10 15 28 8 . Impact . | . . . . . . . . . . . . . . . . . . . . . Slashing 115 | . . . . . . . . . . . . . 26 25 3 10 15 28 8 . Piercing . | . . . . . . . . . . . . . . . . . . . . . Sneak Attacks 28 | . . . . . . . . . . . . . 4 9 . . 6 8 1 . Combat Hostiles . | . . . . . . . . . . . . . . . . . . . . . Follow-up Attacks 4 | . . . . . . . . . . . . . 1 2 . . . 1 . . Damage Inflicted 26622 | 80 1272 198 . 371 2753 2153 3202 711 2160 . 1074 2631 6608 1106 . 225 694 1235 149 . Guns 15742 | 80 1175 76 . 371 2373 2153 3202 711 2018 . 1074 1879 630 . . . . . . . Cannons 3295 | . . . . . 143 . . . . . . 752 2400 . . . . . . . Explosions 3253 | . 95 120 . . 237 . . . 142 . . . 2659 . . . . . . . Melee 4312 | . . . . . . . . . . . . . 919 1106 . 225 694 1235 133 . Ramming 20 | . 2 2 . . . . . . . . . . . . . . . . 16 . Kinetic 13740 | . 273 43 . 328 1582 2000 3202 711 2018 . 1074 1879 630 . . . . . . . Thermal 5042 | 26 701 33 . 43 934 153 . . . . . 752 2400 . . . . . . . Explosive 3158 | . . 120 . . 237 . . . 142 . . . 2659 . . . . . . . Electromagnetic 350 | 54 296 . . . . . . . . . . . . . . . . . . . Impact . | . . . . . . . . . . . . . . . . . . . . . Slashing 4312 | . . . . . . . . . . . . . 919 1106 . 225 694 1235 133 . Piercing . | . . . . . . . . . . . . . . . . . . . . . Highest Corruption 31 | . . . . . 3 3 3 . . . . . 6 2 2 4 . 13 16 31 Average Corruption 4 | . . . . . 1 3 3 . . . . . 3 2 2 3 . 9 10 19 Corruption Purged 5 | . . . . . . . . . . . . . 5 . . . . . . . Corruption Blocked . | . . . . . . . . . . . . . . . . . . . . . Effects 148 | . . . . . 7 26 25 . . . . . 20 4 1 1 . 34 4 26 Message Errors 42 | . . . . . 1 7 9 . . . . . 5 1 1 1 . 7 . 10 Matter Fused 40 | . . . . . 2 5 8 . . . . . 5 1 . . . 9 1 9 Heat Flow Errors 15 | . . . . . 2 3 4 . . . . . 1 . . . . 4 1 . Energy Discharges 15 | . . . . . 2 1 . . . . . . 3 . . . . 7 . 2 Parts Rejected 1 | . . . . . . 1 . . . . . . . . . . . . . . Parts Fused 2 | . . . . . . . 1 . . . . . . . . . . . . 1 Data Loss (minor) 19 | . . . . . . 5 3 . . . . . 3 1 . . . 4 1 2 Data Loss (major) 6 | . . . . . . 2 . . . . . . 2 1 . . . 1 . . Misfires 4 | . . . . . . 2 . . . . . . . . . . . . . 2 Alerts 2 | . . . . . . . . . . . . . 1 . . . . . 1 . Misdirections 2 | . . . . . . . . . . . . . . . . . . 2 . . Overload Shots 53 | . . . . . . . . . . . . . . . 1 . . 1 2 49 Effects 3 | . . . . . . . . . . . . . . . . . . . . 3 Heat Surge 2 | . . . . . . . . . . . . . . . . . . . . 2 Short Circuit 1 | . . . . . . . . . . . . . . . . . . . . 1 Overflow Damage 1194 | . 19 . . . 79 . . . . . . . 333 302 . 5 231 183 42 . Projectiles 31 | . . . . . . . . . . . . . 31 . . . . . . . Explosions 135 | . 19 . . . 79 . . . . . . . 37 . . . . . . . Melee 1028 | . . . . . . . . . . . . . 265 302 . 5 231 183 42 . Knockbacks . | . . . . . . . . . . . . . . . . . . . . . Impact . | . . . . . . . . . . . . . . . . . . . . . Kinetic . | . . . . . . . . . . . . . . . . . . . . . Secondary . | . . . . . . . . . . . . . . . . . . . . . Self-Inflicted Damage 451 | . . 32 . . 173 . . . 51 . . . 188 . . . . . 7 . Shots 9 | . . 1 . . 2 . . . 1 . . . 5 . . . . . . . Rammed 5 | . 1 1 . . . . . . . . . . . . . . . 1 2 . Targets Rammed 5 | . 1 1 . . . . . . . . . . . . . . . 1 2 . Kicked . | . . . . . . . . . . . . . . . . . . . . . Crushed . | . . . . . . . . . . . . . . . . . . . . . Highest Temperature 407 | 180 309 26 . 120 194 229 138 21 110 . 92 248 407 . 154 . . 221 102 298 Average Temperature 55 | 82 78 13 . 29 30 47 29 10 31 . 13 46 91 . 84 . . 87 28 170 Received Heat Transfer 2896 | . 333 . . 6 225 243 144 45 225 . 39 423 906 . 18 . . 162 78 49 Effects 9 | . 6 . . . . . . . . . . . 3 . . . . . . . Energy Bleed 1 | . 1 . . . . . . . . . . . . . . . . . . . Interference 8 | . 5 . . . . . . . . . . . 3 . . . . . . . Siege Activations . | . . . . . . . . . . . . . . . . . . . . . Martial Activations . | . . . . . . . . . . . . . . . . . . . . . Shielding Activations . | . . . . . . . . . . . . . . . . . . . . . Robots Disrupted . | . . . . . . . . . . . . . . . . . . . . . Combat Hostiles . | . . . . . . . . . . . . . . . . . . . . . Robots Corrupted . | . . . . . . . . . . . . . . . . . . . . . Combat Hostiles . | . . . . . . . . . . . . . . . . . . . . . Parts Fried 2 | . 2 . . . . . . . . . . . . . . . . . . . Impact Corruptions . | . . . . . . . . . . . . . . . . . . . . . Robots Melted 1 | . . . . . . . . . . . . . 1 . . . . . . . Combat Hostiles 1 | . . . . . . . . . . . . . 1 . . . . . . . Parts Melted 16 | . 4 . . 1 6 1 . . . . . . 4 . . . . . . . Heat Transferred 10325 | 74 1883 75 . 185 2849 407 . . . . . 1377 3475 . . . . . . . Parts Sabotaged 8 | . . . . . . . . . . . . . 6 . . . . . . 2 Parts Stolen . | . . . . . . . . . . . . . . . . . . . . . Parts Stripped . | . . . . . . . . . . . . . . . . . . . . . Power Chain Reactions 2 | . 2 . . . . . . . . . . . . . . . . . . . Alert | -11 -10 -10 -10 -9 -8 -8 -8 -7 -7 -6 -6 -6 -5 -5 -5 -4 -4 -4 -3 -3 ------- Run | Yrd Mat Min Exi Min Mat Gar Mat Fac Gar Fac DSF Gar Fac Upp War Pro Fac Ext Res Tes Maximum Alert Level 5 | . . . . . 1 4 3 2 4 2 2 5 5 . . . 1 2 1 5 Low Security (%) 37 | 100 100 100 . 100 34 3 . . . . . . . . . . 12 58 87 . Level 1 14 | . . . . . 65 14 . 92 14 . . . . . . . 87 17 12 . Level 2 15 | . . . . . . 19 55 7 21 100 100 22 . . . . . 24 . . Level 3 13 | . . . . . . 19 44 . 41 . . 15 31 . . . . . . . Level 4 11 | . . . . . . 43 . . 22 . . 48 20 . . . . . . . Level 5 4 | . . . . . . . . . . . . 12 48 . . . . . . . High Security . | . . . . . . . . . . . . . . . . . . . . . Max Security 3 | . . . . . . . . . . . . . . . . . . . . 99 Sterilizations 1 | . . . . . . . . . . . 1 . . . . . . . . . Peak Influence 1849 | 5 165 121 . 78 317 1329 901 415 1324 695 678 1773 1849 . . . 314 482 218 1648 Initial 930 | . . 24 . . 12 194 647 314 254 695 444 508 930 . . . 300 100 218 24 Average 546 | . 64 20 . 5 194 880 705 337 820 669 584 1125 1415 . . . 273 216 85 1629 Influence Increases 10403 | 10 490 97 . 181 888 1135 813 219 1090 . 254 1335 1671 175 138 60 466 1115 184 82 Destroy 0b10 Robot/C 4760 | . 240 60 . 120 400 560 440 160 580 . 180 660 600 100 60 40 20 540 . . Destroy 0b10 Robot/NC 465 | 10 55 5 . 15 105 5 85 . 5 . 10 5 90 5 . . 25 40 5 . Destroy Leader 744 | . 80 10 . 20 150 30 108 40 30 . 30 50 112 10 . 20 12 42 . . Allied During Kill 636 | . . . . 7 3 96 6 . 50 . 34 69 6 . 3 . . 362 . . Successful Hack 369 | . 19 . . 3 39 28 28 18 21 . . 30 60 . . . 30 93 . . Select Force Hacks 170 | . 60 . . . 30 . 30 . . . . . 50 . . . . . . . Disable Machine 465 | . . 15 . 15 90 30 75 . 30 . . 60 75 . . . 30 15 . 30 Anti-Garrison Action 1100 | . . . . . . 300 . . 300 . . 350 150 . . . . . . . Destroy Structure 674 | . 6 7 . 1 71 56 41 1 74 . . 111 258 . . . 4 8 14 22 Advance Influence 300 | . . . . . . . . . . . . . . . . . 300 . . . Partial Spotted 45 | . . . . . . . . . . . . . 15 . . . 15 . 15 . Lose Combat Pursuer 675 | . 30 . . . . 30 . . . . . . 255 60 75 . 30 15 150 30 Influence Decreases 10357 | 10 427 160 . 149 621 105 1451 547 129 689 211 240 1595 963 1178 81 260 904 556 81 Entered New Map 5258 | . . 39 . . 20 105 682 377 109 629 191 170 843 685 1061 21 . 106 199 21 Time Decay 3730 | 10 418 121 . 128 581 . 589 170 . 60 . . 542 238 58 50 140 498 127 . Search Patrol Dispatched 100 | . . . . . . . . . . . . . . . . . 100 . . . Lost Part 536 | . 9 . . . 20 . 10 . . . . 50 190 40 7 10 20 40 80 60 Lost Ally 433 | . . . . 21 . . 20 . 20 . 20 20 20 . 52 . . 260 . . Purge Threat 300 | . . . . . . . 150 . . . . . . . . . . . 150 . Squads Dispatched 77 | . 5 . . . 6 . 8 3 . . 1 . 18 . . . . 1 5 30 Investigation 10 | . 2 . . . 1 . 2 1 . . . . 1 . . . . 1 2 . Extermination 3 | . . . . . . . . . . . . . 1 . . . . . 2 . Reinforcement 13 | . 3 . . . 4 . 2 . . . 1 . 2 . . . . . 1 . Assault 44 | . . . . . . . 3 . . . . . 11 . . . . . . 30 Garrison 7 | . . . . . 1 . 1 2 . . . . 3 . . . . . . . Intercept . | . . . . . . . . . . . . . . . . . . . . . Searches Triggered 1 | . . . . . . . . . . . . . . . . . 1 . . . Construction Impeded 1 | . . . . . . . 1 . . . . . . . . . . . . . Haulers Reinforced 1 | . . . . . . . . . . . . . 1 . . . . . . . Active Scanning Responses . | . . . . . . . . . . . . . . . . . . . . . Cargo Convoy Interrupts . | . . . . . . . . . . . . . . . . . . . . . Stealth | -11 -10 -10 -10 -9 -8 -8 -8 -7 -7 -6 -6 -6 -5 -5 -5 -4 -4 -4 -3 -3 --------- Run | Yrd Mat Min Exi Min Mat Gar Mat Fac Gar Fac DSF Gar Fac Upp War Pro Fac Ext Res Tes Distress Signals 19 | . 1 . . . 4 . 2 1 . . . . 1 . . 1 . 5 4 . Communications Jammed . | . . . . . . . . . . . . . . . . . . . . . Distress Signals . | . . . . . . . . . . . . . . . . . . . . . Times Spotted 432 | . 24 3 . 6 23 29 30 8 26 . 9 35 79 8 35 6 6 28 21 56 Peak Tracking Total 45 | . 4 3 . 2 3 5 6 3 4 . 3 6 12 5 12 4 4 5 16 45 Tactical Retreats 26 | . 2 . . . . 2 . . . . . . 10 2 4 . 1 1 3 1 ECM-based Alert Blocks 4 | . . . . . . . . . . . . . . . . . . . 4 . Traps | -11 -10 -10 -10 -9 -8 -8 -8 -7 -7 -6 -6 -6 -5 -5 -5 -4 -4 -4 -3 -3 ------- Run | Yrd Mat Min Exi Min Mat Gar Mat Fac Gar Fac DSF Gar Fac Upp War Pro Fac Ext Res Tes Traps Triggered 28 | . 2 . . . 2 5 . . 12 . 2 1 2 . . . . 1 1 . Indirectly . | . . . . . . . . . . . . . . . . . . . . . Trap Hack Attempts . | . . . . . . . . . . . . . . . . . . . . . Triggered . | . . . . . . . . . . . . . . . . . . . . . Disarmed . | . . . . . . . . . . . . . . . . . . . . . Reprogrammed . | . . . . . . . . . . . . . . . . . . . . . Reused . | . . . . . . . . . . . . . . . . . . . . . Traps Extracted . | . . . . . . . . . . . . . . . . . . . . . Installed . | . . . . . . . . . . . . . . . . . . . . . Triggered . | . . . . . . . . . . . . . . . . . . . . . Machines | -11 -10 -10 -10 -9 -8 -8 -8 -7 -7 -6 -6 -6 -5 -5 -5 -4 -4 -4 -3 -3 ---------- Run | Yrd Mat Min Exi Min Mat Gar Mat Fac Gar Fac DSF Gar Fac Upp War Pro Fac Ext Res Tes Machines Disabled 51 | . . 1 . 3 6 6 5 . 7 . . 9 6 . 2 . 2 2 . 2 Max in Single Turn 3 | . . 1 . 1 3 1 1 . 1 . . 1 2 . 1 . 1 1 . 1 Garrison Access 4 | . . . . . . . 1 . . . . . 2 . . . 1 . . . Garrison Relay 13 | . . . . . . 4 . . 4 . . 5 . . . . . . . . Machines Repaired . | . . . . . . . . . . . . . . . . . . . . . Machines Dismantled . | . . . . . . . . . . . . . . . . . . . . . Machines Sabotaged 1 | . . . . . . . . . . . . . 1 . . . . . . . Overloaded Fab Kills . | . . . . . . . . . . . . . . . . . . . . . Hacking | -11 -10 -10 -10 -9 -8 -8 -8 -7 -7 -6 -6 -6 -5 -5 -5 -4 -4 -4 -3 -3 --------- Run | Yrd Mat Min Exi Min Mat Gar Mat Fac Gar Fac DSF Gar Fac Upp War Pro Fac Ext Res Tes Machines Accessed 92 | . 8 . 1 1 12 3 9 3 2 1 . 3 13 3 8 . 7 13 5 . Terminals 54 | . 5 . . 1 8 3 6 . 2 1 . 3 4 1 . . 4 12 4 . Fabricators 1 | . . . . . . . . . . . . . . . . . 1 . . . Repair Stations 7 | . 1 . . . 1 . 1 1 . . . . 2 . . . 1 . . . Recycling Units 7 | . 2 . . . 1 . 1 . . . . . 2 . . . . 1 . . Scanalyzers 6 | . . . . . 1 . 1 . . . . . 3 . . . . . 1 . Garrison Access 6 | . . . . . 1 . . 2 . . . . 2 . . . 1 . . . Total Hacks 240 | . 18 . 1 4 30 6 32 9 5 2 . 5 36 8 22 . 20 31 11 . Successful 136 | . 9 . 1 1 17 2 25 3 2 1 . 2 9 8 22 . 12 18 4 . Failed 101 | . 9 . . 3 12 4 6 6 3 1 . 3 27 . . . 8 13 6 . Catastrophic 12 | . . . . 1 1 1 1 . . . . 2 3 . . . . . 3 . Database Lockouts 3 | . . . . . 1 . 1 . . . . . . . . . . . 1 . Manual 101 | . 15 . 1 1 19 1 15 . 1 . . 2 10 . 2 . 13 15 6 . Terminals 140 | . 13 . . 4 21 6 18 . 5 2 . 5 14 1 . . 15 29 7 . Fabricators 2 | . . . . . . . . . . . . . . . . . 2 . . . Repair Stations 21 | . 2 . . . 3 . 6 5 . . . . 3 . . . 2 . . . Recycling Units 11 | . 3 . . . 1 . 1 . . . . . 4 . . . . 2 . . Scanalyzers 25 | . . . . . 4 . 7 . . . . . 10 . . . . . 4 . Garrison Access 11 | . . . . . 1 . . 4 . . . . 5 . . . 1 . . . Terminal Hacks 59 | . . . 1 . 2 2 4 . 2 1 . 2 1 8 22 . 3 10 1 . Record 16 | . . . . . . . . . . . . . . 7 9 . . . . . Part Schematic 1 | . . . . . . . . . . . . . . . . . . 1 . . Prototype ID Bank 12 | . . . . . . . 1 . . . . . . . 11 . . . . . Open Door 9 | . . . . . . . . . 1 . . . . 1 2 . . 5 . . Open DSF 1 | . . . . . . . . . . 1 . . . . . . . . . . Level Access Points 1 | . . . . . . . . . . . . . . . . . 1 . . . Branch Access Points 4 | . . . . . 1 . 1 . . . . . . . . . 1 1 . . Emergency Access Points 1 | . . . . . . . . . 1 . . . . . . . . . . . Machine Index 1 | . . . . . . . . . . . . . . . . . . 1 . . Terminal Index 4 | . . . . . 1 . 1 . . . . . . . . . 1 1 . . Unreport Threat 2 | . . . . . . . 1 . . . . . . . . . . . 1 . Locate Traps 1 | . . . . . . . . . . . . . . . . . . 1 . . Zone Layout 1 | . . . . . . . . . . . . . 1 . . . . . . . Garrison Registry 1 | . . . . . . 1 . . . . . . . . . . . . . . Patrol Navigation 2 | . . . . . . 1 . . . . . 1 . . . . . . . . Security Stations 1 | . . . . . . . . . . . . 1 . . . . . . . . Proto ID Catalog 1 | . . . 1 . . . . . . . . . . . . . . . . . Fabricator Hacks 1 | . . . . . . . . . . . . . . . . . 1 . . . Network Status 1 | . . . . . . . . . . . . . . . . . 1 . . . Repair Station Hacks 13 | . 2 . . . 2 . 5 2 . . . . . . . . 2 . . . Scan Component 7 | . 1 . . . 1 . 3 1 . . . . . . . . 1 . . . Repair 6 | . 1 . . . 1 . 2 1 . . . . . . . . 1 . . . Recycling Unit Hacks 2 | . . . . . . . . . . . . . 1 . . . . 1 . . Retrieve Components 2 | . . . . . . . . . . . . . 1 . . . . 1 . . Scanalyzer 15 | . . . . . 3 . 6 . . . . . 3 . . . . . 3 . Insert Component 1 | . . . . . . . 1 . . . . . . . . . . . . . Analyze 1 | . . . . . . . 1 . . . . . . . . . . . . . Retrieve Study 13 | . . . . . 3 . 4 . . . . . 3 . . . . . 3 . Garrison Access Hacks 4 | . . . . . 1 . . 1 . . . . 1 . . . 1 . . . Unlock Access 2 | . . . . . 1 . . 1 . . . . . . . . . . . . Seal Access 2 | . . . . . . . . . . . . . 1 . . . 1 . . . Unauthorized Hacks 42 | . 7 . . 1 9 . 10 . . . . . 3 . . . 5 7 . . Terminals 37 | . 5 . . 1 8 . 9 . . . . . 3 . . . 5 6 . . Track 1 | . . . . 1 . . . . . . . . . . . . . . . . Assimilate 1 | . . . . . . . . . . . . . 1 . . . . . . . Botnet 12 | . 1 . . . 3 . 4 . . . . . . . . . 3 1 . . Operators 1 | . . . . . . . . . . . . . 1 . . . . . . . Skim 21 | . 4 . . . 5 . 5 . . . . . . . . . 2 5 . . Sabotage 1 | . . . . . . . . . . . . . 1 . . . . . . . Fabricators . | . . . . . . . . . . . . . . . . . . . . . Repair Stations . | . . . . . . . . . . . . . . . . . . . . . Recycling Units 5 | . 2 . . . 1 . 1 . . . . . . . . . . 1 . . Reject 1 | . . . . . . . . . . . . . . . . . . 1 . . Tunnel 4 | . 2 . . . 1 . 1 . . . . . . . . . . . . . Scanalyzers . | . . . . . . . . . . . . . . . . . . . . . Garrison Access . | . . . . . . . . . . . . . . . . . . . . . Data Cores Recovered 1 | . . . . . . . 1 . . . . . . . . . . . . . Used . | . . . . . . . . . . . . . . . . . . . . . Hacking Detections 65 | . 6 . . 1 9 2 7 2 2 . . 3 12 1 . . 6 9 5 . Full Trace Events 3 | . . . . . . . 1 1 . . . . . . . . . . 1 . Feedback Events . | . . . . . . . . . . . . . . . . . . . . . Feedback Blocked . | . . . . . . . . . . . . . . . . . . . . . Robot Schematics Acquired . | . . . . . . . . . . . . . . . . . . . . . Robots Built . | . . . . . . . . . . . . . . . . . . . . . Authchips . | . . . . . . . . . . . . . . . . . . . . . Time . | . . . . . . . . . . . . . . . . . . . . . Total Robot Build Rating . | . . . . . . . . . . . . . . . . . . . . . Part Schematics Acquired 2 | . . . . . . . 1 . . . . . . . . . . 1 . . Parts Built . | . . . . . . . . . . . . . . . . . . . . . Authchips . | . . . . . . . . . . . . . . . . . . . . . Time . | . . . . . . . . . . . . . . . . . . . . . Total Part Build Rating . | . . . . . . . . . . . . . . . . . . . . . Part Studies Acquired 12 | . . . . . 3 . 3 . . . . . 3 . . . . . 3 . Parts Repaired 6 | . 1 . . . 1 . 2 1 . . . . . . . . 1 . . . Time 209 | . 26 . . . 32 . 76 44 . . . . . . . . 31 . . . Parts Recycled . | . . . . . . . . . . . . . . . . . . . . . Recycled Matter . | . . . . . . . . . . . . . . . . . . . . . Retrieved Matter . | . . . . . . . . . . . . . . . . . . . . . Retrieved Components 4 | . . . . . . . . . . . . . 2 . . . . 2 . . Parts Scanalyzed 1 | . . . . . . . 1 . . . . . . . . . . . . . Part Schematics Acquired 1 | . . . . . . . 1 . . . . . . . . . . . . . Parts Damaged . | . . . . . . . . . . . . . . . . . . . . . Bothacking | -11 -10 -10 -10 -9 -8 -8 -8 -7 -7 -6 -6 -6 -5 -5 -5 -4 -4 -4 -3 -3 ------------ Run | Yrd Mat Min Exi Min Mat Gar Mat Fac Gar Fac DSF Gar Fac Upp War Pro Fac Ext Res Tes Used RIF Installer . | . . . . . . . . . . . . . . . . . . . . . Robots Hacked . | . . . . . . . . . . . . . . . . . . . . . Non-combat . | . . . . . . . . . . . . . . . . . . . . . Combat . | . . . . . . . . . . . . . . . . . . . . . Robot Hacks Applied . | . . . . . . . . . . . . . . . . . . . . . Relay Couplers Released 53 | . . . . . . 16 3 . 15 . . 19 . . . . . . . . Machine Destruction 53 | . . . . . . 16 3 . 15 . . 19 . . . . . . . . Fabnet Peak Effective % . | . . . . . . . . . . . . . . . . . . . . . Robots Rewired 27 | . . . . . . 3 . . . . . 1 . . 5 . . 18 . . Allies Hacked 1 | . . . . . . . . . . . 1 . . . . . . . . . Hacks Repelled . | . . . . . . . . . . . . . . . . . . . . . Allies | -11 -10 -10 -10 -9 -8 -8 -8 -7 -7 -6 -6 -6 -5 -5 -5 -4 -4 -4 -3 -3 -------- Run | Yrd Mat Min Exi Min Mat Gar Mat Fac Gar Fac DSF Gar Fac Upp War Pro Fac Ext Res Tes Total Allies 42 | . . . . 4 . 3 . . 3 . . 1 1 . 5 . . 25 . . Largest Group 11 | . . . . 3 2 3 1 . 2 2 2 1 1 . 5 . . 11 . . Highest-Rated Group 455 | . . . . 40 24 90 31 . 175 105 105 116 116 . 271 . . 455 . . Highest-Rated Ally 159 | . . . . 31 16 39 31 . 95 80 80 116 116 . 68 . . 159 . . Initial Warlord ECA Mod 30 | . . . . . . . 8 7 7 12 12 22 30 30 30 29 29 29 28 28 Total Orders 2 | . . . . . . . . . . . . 2 . . . . . . . . ROAM 1 | . . . . . . . . . . . . 1 . . . . . . . . FOLLOW 1 | . . . . . . . . . . . . 1 . . . . . . . . Ally Attacks 291 | . . . . 19 13 33 7 . 20 . 8 23 5 . 22 . . 141 . . Total Damage 8246 | . . . . 188 129 423 102 . 707 . 358 1062 156 . 1075 . . 4046 . . Kills 58 | . . . . 1 . 5 1 . 6 . 2 11 1 . 3 . . 28 . . Allies Corrupted 2 | . . . . . . . . . . . . . . . . . . 2 . . Allies Melted . | . . . . . . . . . . . . . . . . . . . . . Intel | -11 -10 -10 -10 -9 -8 -8 -8 -7 -7 -6 -6 -6 -5 -5 -5 -4 -4 -4 -3 -3 ------- Run | Yrd Mat Min Exi Min Mat Gar Mat Fac Gar Fac DSF Gar Fac Upp War Pro Fac Ext Res Tes Active Infowar (turns) 7857 | 105 2409 766 207 95 . . . . . . . . 1051 509 656 133 289 793 217 627 Optics 3588 | . . . . . . . . . . . . . 568 509 656 133 289 793 13 627 Sensors 1375 | . . . . 95 . . . . . . . . . 438 656 133 53 . . . Terrain 483 | . . . . . . . . . . . . . 483 . . . . . . . Structural 708 | . . . . . . . . . . . . . . . . . . 708 . . Seismic 3487 | 105 2409 766 207 . . . . . . . . . . . . . . . . . Jamming 203 | . . . . . . . . . . . . . . 4 . . . . 199 . ECM 204 | . . . . . . . . . . . . . . . . . . . 204 . Robot Analysis Total . | . . . . . . . . . . . . . . . . . . . . . Derelict Logs Recovered 6 | . . . . 3 . . . . . . . . . 1 . 2 . . . . Drone Launches . | . . . . . . . . . . . . . . . . . . . . . Drone Recoveries . | . . . . . . . . . . . . . . . . . . . . . Exploration | -11 -10 -10 -10 -9 -8 -8 -8 -7 -7 -6 -6 -6 -5 -5 -5 -4 -4 -4 -3 -3 ------------- Run | Yrd Mat Min Exi Min Mat Gar Mat Fac Gar Fac DSF Gar Fac Upp War Pro Fac Ext Res Tes Turns Passed 21425 | 192 2614 766 793 1764 2258 1785 1852 358 1534 121 424 1551 1542 509 656 133 289 1331 326 627 Spaces Moved 12260 | 94 889 313 329 686 940 778 596 130 660 57 166 712 1399 1030 1238 298 381 1006 445 113 Core 180 | 7 1 . . . . . . . . . . . 57 . 4 . 2 . 51 58 Treads 6244 | 87 882 313 329 686 551 778 596 130 660 57 166 712 297 . . . . . . . Legs 497 | . 6 . . . . . . . . . . . . . . . . 464 27 . Wheels 389 | . . . . . 389 . . . . . . . . . . . . . . . Hover 692 | . . . . . . . . . . . . . 69 . . 4 . 417 202 . Flight 4258 | . . . . . . . . . . . . . 976 1030 1234 294 379 125 165 55 Fastest Speed 26 | 50 160 240 240 240 145 210 210 201 201 205 160 160 39 34 27 30 30 32 26 40 Average Speed 136 | 151 243 240 240 240 194 210 222 201 203 205 184 160 74 39 32 31 31 87 50 88 Slowest Speed 750 | 160 750 240 240 240 250 210 250 201 206 205 232 160 280 170 150 180 250 120 170 300 Overloaded Moves 4 | . . . . . . . . . . . . . . . . . . . 4 . Propulsion Burnouts . | . . . . . . . . . . . . . . . . . . . . . Robots Hopped 14 | . . . . . . . . . . . . . 3 . 3 . 3 . 4 1 Potential Cave-ins 29 | . . . . . . . . . . . . . . . . . . . . 29 Cave-ins Triggered 6 | . . . . . . . . . . . . . . . . . . . . 6 Exploration Rate (%) 59 | 5 99 66 70 99 95 86 62 6 82 2 94 73 39 98 96 50 11 89 13 24 Regions Visited 20 Branch Regions 8 Pre-discovered Areas 14 | . 2 . . . 2 . 7 . . . . . . 2 1 . . . . . Known Exits Taken 11 | . . . . . 1 . 1 1 . 1 . . 1 1 1 1 1 1 1 . Unknown Exits Taken 5 | 1 1 1 1 1 . . . . . . . . . . . . . . . . Scrap Searched 10 | . . 2 . 2 . . . . . . . . . 3 . 3 . . . . Spaces Dug 101 | . . . . . . . 8 . 14 . . 1 18 3 3 . 2 1 8 43 Terrain Destroyed 348 | . 4 7 . . 60 . 48 1 17 . . 5 143 3 3 . 2 1 8 46 Melee 24 | . . . . . . . . . . . . . 9 3 3 . 2 1 6 . Projectile 127 | . . . . . . . 48 1 3 . . 5 22 . . . . . 2 46 AOE 197 | . 4 7 . . 60 . . . 14 . . . 112 . . . . . . . Terrain Rammed . | . . . . . . . . . . . . . . . . . . . . . Walls Destroyed . | . . . . . . . . . . . . . . . . . . . . . Machines Disabled . | . . . . . . . . . . . . . . . . . . . . . Actions | -11 -10 -10 -10 -9 -8 -8 -8 -7 -7 -6 -6 -6 -5 -5 -5 -4 -4 -4 -3 -3 --------- Run | Yrd Mat Min Exi Min Mat Gar Mat Fac Gar Fac DSF Gar Fac Upp War Pro Fac Ext Res Tes Total 16209 | 129 1219 320 336 778 1262 918 1131 229 832 62 285 997 1736 1100 1479 322 522 1423 535 594 Wait 2272 | 9 143 1 . 42 165 26 428 76 57 4 70 147 135 24 151 7 99 237 42 409 Move 12212 | 93 888 312 328 685 940 776 595 129 659 56 165 711 1392 1029 1231 297 374 1005 436 111 Hop 14 | . . . . . . . . . . . . . 3 . 3 . 3 . 4 1 Pick Up 229 | 13 52 . 2 9 27 10 16 6 9 . 8 6 30 4 10 2 5 14 3 3 Fast Attach 72 | . 3 . . 1 3 1 8 . 4 . 2 . 13 3 11 . 7 8 8 . Attach 106 | 7 7 . 1 . 6 1 1 2 1 2 . 5 31 8 4 3 3 9 6 9 Detach 28 | . . . . . . . 1 . . . . . 5 4 4 2 1 2 6 3 Swap 107 | . 11 2 . 7 20 3 6 1 6 . 6 6 17 2 3 . 4 11 2 . Drop 242 | . 38 . 5 13 36 12 15 3 11 . 13 3 31 3 10 1 11 18 16 3 Fire 585 | 7 76 4 . 21 65 62 61 12 65 . 20 85 55 . 1 . . 1 2 48 Melee 108 | . . . . . . . . . . . . . 24 23 3 10 15 25 8 . Ram 3 | . . . . . . . . . . . . . . . . . . 1 2 . Kick . | . . . . . . . . . . . . . . . . . . . . . Crush 2 | . 1 1 . . . . . . . . . . . . . . . . . . Escape Stasis 50 | . . . . . . 10 . . 20 . . . . . . . . 13 . 7 Rewire 179 | . . . . . . 17 . . . . 1 34 . . 48 . . 79 . . Trap . | . . . . . . . . . . . . . . . . . . . . . Miscellaneous . | . . . . . . . . . . . . . . . . . . . . . Route ------- -11/Scrapyard -10/Materials (discovered 6 exits: [*Mat x3] / [*Min x2] / [*Sub]) -10/Mines (discovered 3 exits: [*Mat x2] / *Exi) -10/Exiles -9/Mines (discovered 2 exits: *Mat x2) -8/Materials (discovered 4 exits: *Fac x3 / Gar) -8/Garrison (discovered 3 exits: *Mat x3) -8/Materials (discovered 3 exits: *Fac x3) -7/Factory (discovered 4 exits: *Fac / Low x2 / Gar) -7/Garrison (discovered 2 exits: *Fac x2) -6/Factory (discovered 2 exits: Low / DSF) -6/DSF -6/Garrison (discovered 3 exits: *Fac x3) -5/Factory -5/Upper Caves (discovered 2 exits: *Upp / *War) -5/Warlord -4/Proximity Caves -4/Factory (discovered 9 exits: Res x4 / Upp x2 / *Ext x2 / Arm) -4/Extension (discovered 3 exits: *Res x2 / *Cet) -3/Research -3/Testing History --------- Turn | Location | Event 6 | -11/Scrapyard | Discovered new exit (range 15) 193 | -11/Scrapyard | Entered Materials 314 | -10/Materials | Build established: Mutant 335 | -10/Materials | Discovered new exit (range 12) 639 | -10/Materials | Discovered new exit (range 10) 693 | -10/Materials | Derelicts attacked the area 1058 | -10/Materials | Discovered new exit (range 9) 1151 | -10/Materials | Core integrity fell below 50% 1175 | -10/Materials | Lost 4 parts (1p2n1w) 1298 | -10/Materials | Discovered new exit (range 12) 1590 | -10/Materials | Repaired Lgt. Treads 1996 | -10/Materials | Discovered new exit (range 12) 2320 | -10/Materials | Discovered new exit (range 15) 2807 | -10/Materials | Entered Mines 2879 | -10/Mines | Discovered new exit (range 5) 3424 | -10/Mines | Deemed a non-threat by the Exiles lab entrance 3424 | -10/Mines | Discovered new exit (range 5) 3465 | -10/Mines | Discovered new exit (range 14) 3573 | -10/Mines | Entered Exiles 3633 | -10/Exiles | Met 8R-AWN 3684 | -10/Exiles | Met EX-HEX 3751 | -10/Exiles | Met EX-BIN 3777 | -10/Exiles | Aligned with FarCom system 3780 | -10/Exiles | Given EX-Vault access code 3839 | -10/Exiles | Opened EX-Vault 3855 | -10/Exiles | Found XL Autogun Array 3905 | -10/Exiles | Warned to stay clear of 0b10 Research branches 3970 | -10/Exiles | Met EX-DEC 4337 | -10/Exiles | Discovered new exit (range 14) 4366 | -10/Exiles | Left Exiles lab with XL Autogun Array 4366 | -10/Exiles | Entered Mines 4369 | -9/Mines | Received a Mining Laser from a helpful Derelict 4409 | -9/Mines | Met a Derelict bent on vengeance 4751 | -9/Mines | Found a Scrap Suit stashed away for nefarious purposes 4797 | -9/Mines | Assisted by bots powering up and referring to "LRC-V3" 4801 | -9/Mines | Learned location of 1 exit from Materials 4917 | -9/Mines | Learned 8 Materials zone layouts 4993 | -9/Mines | A weapon hastily lodged in a ceiling crevice suddenly fell to the ground 5113 | -9/Mines | Found a damaged Exp. Sensor Array with a note attached 5119 | -9/Mines | Found Prototype Device 5119 | -9/Mines | Identified Exp. Sensor Array 5583 | -9/Mines | Discovered new exit (range 5) 6005 | -9/Mines | Discovered new exit (range 5) 6073 | -9/Mines | Joined a pair of Derelicts in attacking an 0b10 outpost 6130 | -9/Mines | Entered Materials 6130 | -8/Materials | Accompanied by 2 allies 6130 | -8/Materials | Evolved 4 slots: Utility x2, Weapon x2 6131 | -8/Materials | Identified exit to Factory 6435 | -8/Materials | Build established: Scavenger-Skirmisher 6516 | -8/Materials | Met 7R-MNS 6726 | -8/Materials | Discovered exit to Factory (range 15) 6960 | -8/Materials | Build established: Skirmisher 7017 | -8/Materials | Repaired Hvy. Assault Rifle? 7349 | -8/Materials | Central database locked down 7845 | -8/Materials | Learned Factory fabricator intel 7897 | -8/Materials | Learned location of 1 exit from Lower Caves 7995 | -8/Materials | Learned location of Zion (-6) 8061 | -8/Materials | Learned Storage emergency access door positions 8173 | -8/Materials | Build established: Scavenger-Skirmisher 8314 | -8/Materials | Garrison activated, responded to threat 8388 | -8/Materials | Identified exit to Garrison 8388 | -8/Materials | Entered Garrison 8569 | -8/Garrison | Build established: Skirmisher 8596 | -8/Garrison | Garrison Relay disabled 8698 | -8/Garrison | Triggered checkpoint 8814 | -8/Garrison | Triggered checkpoint 8866 | -8/Garrison | Garrison Relay disabled 8909 | -8/Garrison | Discovered new exit (range 11) 9050 | -8/Garrison | Triggered checkpoint 9164 | -8/Garrison | Triggered checkpoint 9303 | -8/Garrison | Discovered new exit (range 10) 9370 | -8/Garrison | Triggered checkpoint 9395 | -8/Garrison | Garrison Relay disabled 9604 | -8/Garrison | Triggered checkpoint 9712 | -8/Garrison | Triggered checkpoint 9743 | -8/Garrison | Garrison Relay disabled 9771 | -8/Garrison | Discovered new exit (range 25) 9771 | -8/Garrison | Discovered new exit (range 88) 9771 | -8/Garrison | Discovered new exit (range 44) 9957 | -8/Garrison | Attempted to access garrison exit controls, blocked by remote lockdown 10173 | -8/Garrison | Entered Materials 10173 | -8/Materials | Accompanied by 1 ally 10217 | -8/Materials | Garrison activated, responded to threat 10338 | -8/Materials | Met 7R-MNS 10635 | -8/Materials | Central database locked down 10667 | -8/Materials | Discovered exit to Factory (range 15) 11390 | -8/Materials | Discovered exit to Factory (range 13) 11479 | -8/Materials | Repaired Arm. Treads+ 11480 | -8/Materials | Learned location of Lower Caves (-7) 11520 | -8/Materials | Repaired Arm. Treads+ 11548 | -8/Materials | Learned Factory trap positions 11656 | -8/Materials | Learned Factory stockpile data 11696 | -8/Materials | Learned 2 Lower Caves zone layouts 11728 | -8/Materials | Learned location of Lower Caves (-6) 11773 | -8/Materials | First assault squad dispatched 12025 | -8/Materials | Entered Factory 12025 | -7/Factory | Evolved 2 slots: Propulsion x1, Utility x1 12026 | -7/Factory | Caught up to 7R-MNS 12026 | -7/Factory | Identified exit to Lower Caves 12027 | -7/Factory | Loaded intel: 70 trap records 12029 | -7/Factory | Loaded intel: 6 fabricator locations 12205 | -7/Factory | Garrison activated, responded to threat 12332 | -7/Factory | Repaired Imp. Medium Armor Plating 12337 | -7/Factory | Build established: Gunner 12353 | -7/Factory | Discovered new exit (range 10) 12367 | -7/Factory | Identified exit to Garrison 12383 | -7/Factory | Entered Garrison 12605 | -7/Garrison | Triggered checkpoint 12624 | -7/Garrison | Garrison Relay disabled 12749 | -7/Garrison | Triggered checkpoint 12803 | -7/Garrison | Triggered checkpoint 12895 | -7/Garrison | Triggered checkpoint 12939 | -7/Garrison | Garrison Relay disabled 13150 | -7/Garrison | Discovered new exit (range 15) 13160 | -7/Garrison | Found embedded Infiltrators 13267 | -7/Garrison | Garrison Relay disabled 13565 | -7/Garrison | Triggered checkpoint 13607 | -7/Garrison | Build established: Scavenger-Gunner 13630 | -7/Garrison | Discovered new exit (range 10) 13674 | -7/Garrison | Garrison Relay disabled 13817 | -7/Garrison | Rescued a captive Derelict 13917 | -7/Garrison | Entered Factory 13917 | -6/Factory | Accompanied by 2 allies 13917 | -6/Factory | Evolved 2 slots: Propulsion x1, Utility x1 13918 | -6/Factory | Identified exit to Lower Caves 14034 | -6/Factory | Identified exit to DSF 14038 | -6/Factory | Entered DSF 14038 | -6/DSF | Accompanied by 2 allies 14086 | -6/DSF | Additional patrols routed to DSF 14218 | -6/DSF | Discovered new exit (range 15) 14330 | -6/DSF | Sterilization system engaged 14350 | -6/DSF | Ambient heat levels rising (+10) 14365 | -6/DSF | Ambient heat levels rising (+10) 14380 | -6/DSF | Ambient heat levels rising (+10) 14395 | -6/DSF | Ambient heat levels rising (+10) 14410 | -6/DSF | Ambient heat levels rising (+10) 14425 | -6/DSF | Ambient heat levels rising (+10) 14440 | -6/DSF | Ambient heat levels rising (+10) 14455 | -6/DSF | Ambient heat levels rising (+10) 14462 | -6/DSF | Entered Garrison 14462 | -6/Garrison | Accompanied by 1 ally 14519 | -6/Garrison | Spotted B-90 Cyclops 14531 | -6/Garrison | Destroyed B-90 Cyclops 14551 | -6/Garrison | Build established: Gunner 14591 | -6/Garrison | Rewired B-86 Titan 14694 | -6/Garrison | Triggered checkpoint 14731 | -6/Garrison | Garrison Relay disabled 14745 | -6/Garrison | Learned Factory security intel 14808 | -6/Garrison | Triggered checkpoint 14864 | -6/Garrison | Triggered checkpoint 15037 | -6/Garrison | Triggered checkpoint 15062 | -6/Garrison | Garrison Relay disabled 15108 | -6/Garrison | Discovered new exit (range 8) 15267 | -6/Garrison | Triggered checkpoint 15330 | -6/Garrison | Triggered checkpoint 15352 | -6/Garrison | Garrison Relay disabled 15406 | -6/Garrison | Discovered new exit (range 10) 15466 | -6/Garrison | Triggered checkpoint 15570 | -6/Garrison | Build established: Scavenger-Gunner 15597 | -6/Garrison | Garrison Relay disabled 15808 | -6/Garrison | Triggered checkpoint 15925 | -6/Garrison | Triggered checkpoint 15961 | -6/Garrison | Garrison Relay disabled 15991 | -6/Garrison | Discovered new exit (range 10) 16013 | -6/Garrison | Entered Factory 16013 | -5/Factory | Accompanied by 1 ally 16013 | -5/Factory | Evolved 2 slots: Propulsion x1, Utility x1 16313 | -5/Factory | First assault squad dispatched 16318 | -5/Factory | Build established: Scavenger-Skirmisher 16487 | -5/Factory | Garrison activated, responded to threat 16541 | -5/Factory | Destroyed 8 combat bots 16545 | -5/Factory | Lost 4 parts (1n1u2w) 16841 | -5/Factory | Core integrity fell below 50% 16859 | -5/Factory | Lost 12 parts (2p6n1u3w) 17463 | -5/Factory | Discovered new exit (range 5) 17465 | -5/Factory | Identified exit to Upper Caves 17555 | -5/Factory | Entered Upper Caves 17605 | -5/Upper Caves | Met a Warlord Commander 17606 | -5/Upper Caves | Learned location of Warlord (-5) 17607 | -5/Upper Caves | Warlord Commander delivered Encrypted Comm Array 17612 | -5/Upper Caves | Found Encrypted Comm Array 17624 | -5/Upper Caves | Lost 4 parts (2n1u1w) 17655 | -5/Upper Caves | Identified exit to Upper Caves 17918 | -5/Upper Caves | Entered an active Warlord outpost 17924 | -5/Upper Caves | Learned location of Extension (-4) 17924 | -5/Upper Caves | Learned Factory emergency access door positions 17924 | -5/Upper Caves | Learned Extension stockpile data 17924 | -5/Upper Caves | Learned Research security intel 17962 | -5/Upper Caves | Found Alien Artifact 17962 | -5/Upper Caves | Identified Core Expander 17962 | -5/Upper Caves | Installed Core Expander, added new Utility slot 18024 | -5/Upper Caves | A Derelict revealed a hidden shortcut to "reach the base" 18030 | -5/Upper Caves | Identified exit to Warlord 18060 | -5/Upper Caves | Build established: Ninja 18064 | -5/Upper Caves | Entered Warlord 18079 | -5/Warlord | Discovered new exit (range 12) 18083 | -5/Warlord | Identified exit to Proximity Caves 18095 | -5/Warlord | System corruption cleaned by Quarantine Array 18130 | -5/Warlord | Learned Factory fabricator intel 18130 | -5/Warlord | Learned Factory recycling unit intel 18130 | -5/Warlord | Learned Factory garrison access intel 18130 | -5/Warlord | Learned 4 Research zone layouts 18130 | -5/Warlord | Learned 4 Quarantine zone layouts 18131 | -5/Warlord | Learned Testing stockpile data 18197 | -5/Warlord | Received a Watcher feed algorithm from an ecstatic Tinkerer 18197 | -5/Warlord | Ran a Watcher feed algorithm 18199 | -5/Warlord | Ran a Watcher feed algorithm 18324 | -5/Warlord | Warlord's base attacked by MAIN.C 18333 | -5/Warlord | Met Warlord 18360 | -5/Warlord | Found Prototype Energy Gun 18360 | -5/Warlord | Identified Vortex Shotgun 18363 | -5/Warlord | Found Prototype Energy Gun 18363 | -5/Warlord | Identified Vortex Rifle 18400 | -5/Warlord | Found Prototype Processor 18400 | -5/Warlord | Identified Exp. Targeting Computer 18407 | -5/Warlord | Found Prototype Device 18407 | -5/Warlord | Identified System Purifier 18429 | -5/Warlord | Found Prototype Processor 18429 | -5/Warlord | Identified Exp. Target Analyzer 18437 | -5/Warlord | Found Prototype Reactor 18467 | -5/Warlord | Found Vortex Shotgun 18533 | -5/Warlord | Opened side exit 18647 | -5/Warlord | Warlord forces counterattacked 18711 | -5/Warlord | Spotted Striker 18713 | -5/Warlord | Lost 4 allies 18720 | -5/Warlord | Entered Proximity Caves 18737 | -4/Proximity Caves | Learned location of 1 exit from Upper Caves 18747 | -4/Proximity Caves | Spotter reported a threat 18747 | -4/Proximity Caves | Spotter reported a threat 18748 | -4/Proximity Caves | Core integrity fell below 20% 18827 | -4/Proximity Caves | Learned Research terminal intel 18841 | -4/Proximity Caves | Discovered new exit (range 13) 18844 | -4/Proximity Caves | Identified exit to Factory 18853 | -4/Proximity Caves | Entered Factory 18853 | -4/Factory | Evolved 2 slots: Power x1, Propulsion x1 18854 | -4/Factory | Identified exit to Research 18856 | -4/Factory | Loaded intel: 6 fabricator locations 18857 | -4/Factory | Loaded intel: 8 recycling unit locations 18858 | -4/Factory | Loaded intel: 4 garrison access locations 18961 | -4/Factory | Repaired Graphene Brace 18998 | -4/Factory | Identified exit to Upper Caves 18998 | -4/Factory | Identified exit to Extension 18998 | -4/Factory | Identified exit to Armory 19103 | -4/Factory | Search patrols dispatched 19142 | -4/Factory | Entered Extension 19217 | -4/Extension | Rescued a captive Derelict 19231 | -4/Extension | Rescued a captive Derelict 19270 | -4/Extension | Rescued a captive Derelict 19382 | -4/Extension | Rescued A7 19505 | -4/Extension | Build established: Scavenger-Scout 19694 | -4/Extension | System corruption reached 10% 19786 | -4/Extension | Spotted B-86 Titan 19802 | -4/Extension | Spotted B-86 Titan 19822 | -4/Extension | Allies destroyed B-86 Titan 19846 | -4/Extension | Destroyed B-86 Titan 19851 | -4/Extension | Discovered exit to Research (range 3) 19892 | -4/Extension | Rescued a captive Derelict 19895 | -4/Extension | Rescued a captive Derelict 19950 | -4/Extension | Extracted ID and sensor layout for unrecognized location from A7's data core 19961 | -4/Extension | Lost 3 allies 20040 | -4/Extension | Lost 3 allies 20063 | -4/Extension | Identified exit to Cetus 20066 | -4/Extension | Rescued a captive Derelict 20213 | -4/Extension | Learned Quarantine trap positions 20268 | -4/Extension | Lost 8 allies 20273 | -4/Extension | Learned Research stockpile data 20321 | -4/Extension | Learned location of 1 exit from Armory 20327 | -4/Extension | Build established: Scavenger-Gladiator 20361 | -4/Extension | Learned 2 Upper Caves zone layouts 20391 | -4/Extension | Learned 12 Factory zone layouts 20429 | -4/Extension | Learned 4 Factory zone layouts 20473 | -4/Extension | Entered Research 20473 | -3/Research | Evolved 2 slots: Utility x2 20477 | -3/Research | Loaded intel: 24 terminal locations 20628 | -3/Research | Central database locked down 20702 | -3/Research | System corruption reached 10% 20750 | -3/Research | Discovered new exit (range 16) 20761 | -3/Research | Identified exit to Testing 20793 | -3/Research | Core integrity fell below 50% 20799 | -3/Research | Entered Testing 20800 | -3/Testing | Maximum security lockdown engaged 20811 | -3/Testing | Found Prototype Energy Gun 20812 | -3/Testing | Identified Warp Gun 20819 | -3/Testing | Lost 8 parts (5n3u) 20879 | -3/Testing | Found Prototype Ballistic Cannon 20880 | -3/Testing | Identified Perforator 21073 | -3/Testing | Build established: Hacker-Mutant 21172 | -3/Testing | Crushed by falling debris 21179 | -3/Testing | Crushed by falling debris 21205 | -3/Testing | Crushed by falling debris 21236 | -3/Testing | Lost 3 parts (3u) 21329 | -3/Testing | Crushed by falling debris 21329 | -3/Testing | Core integrity fell below 20% 21339 | -3/Testing | Crushed by falling debris 21367 | -3/Testing | Crushed by falling debris 21412 | -3/Testing | Spotted Executioner 21420 | -3/Testing | Scanned by Researcher 21426 | -3/Testing | System corruption reached 30% 21426 | -3/Testing | Destroyed by G-73 Enforcer with Phase Gun Last Messages --------------- 21425_ Stasis bubble strength at 148. 21425_ B-74 Champion stasis bubble strength at 50. 21425_ C-45 Heavy ARC bursts open, deploying its payload. 21425_ G-73 Enforcer unfolds itself. 21425_ B-74 Champion unfolds itself. 21425_ L-61 Swordsman unfolds itself. 21425_ E-15 Imp unfolds itself. 21425_ G-73 Enforcer stasis bubble strength at 108. 21426_ I-47 Archangel stasis bubble strength at 140. 21426_ G-67 Veteran stasis bubble strength at 124. 21426_ G-73 Enforcer stasis bubble strength at 131. 21426_ Stasis bubble strength at 142. 21426_ B-74 Champion stasis bubble strength at 20. Map ----- +----------------------------------------------------+ | #???????????????????????????????????????????????? | | ########????????????????????????????????????????? | | " ###??????????????##############???????????? | | ## ##################### #???????????? | | ?####??### # # ## ## #???????????? | | ???????############### ## /!! #???????????? | | ????????????????????## ## """ /!! #???????????? | | ?????????????????????## # """%!! #???????????? | | ??????????????????????##" "" " " # #??????? | | ???????????????????????## h p "%"/ #??????? | | ????????????????????????# h C """ #???????????? | | ????????????????????????# C """ +???????????? | | ????????????????????????#h" " """ #???????????? | | ????????????????????????# "T" #???????????? | | ????????????????????????# """ * #???????????? | | ?????????????????????#####m###########???????????? | | ?????????????????????# piml###???????C????????? | | ?????????????????????# E bclgbp????????????????? | | ?????????????????????# glE%#p?????????????????? | | ?????????????????????# gig#??????????????????? | | ?????????????????????# bligg#??????????????????? | | ?????????????????????# ggg #??????????????????? | | ?????????????????????# #??????????????????? | | ?????????????????????# #??????????????????? | | ?????????????????????# !e #??????????????????? | | ?????????????????????####@#####??????????????????? | | ?????????????????????C?Clpb ?????????????????????? | | ????????????????????? gghggi ???????????????????? | | ??????????????????? g p b ?????????????????? | | ????????????????? i #???????????????? | | ??????????????? ########## #???????????????? | | ??????????????# ??????????? #???????????????? | | ??????????????# ????????????? #???????????????? | | ????????????? ????????????????###????!??????????? | | ???????????? ???????????????????????????????????? | | ?????????? ????????????????????????????????????? | | ????????? ??????????????????????????????????????? | | ????????##???????????????????????????????????????? | | ?????????????????????????????????????????????????? | | ?????????????????????????????????????????????????? | | ?????????????????????????????????????????????????? | | ?????????????????????????????????????????????????? | | ?????????????????????????????????????????????????? | | ?????????????????????????????????????????????????? | | ?????????????????????????????????????????????????? | | ?????????????????????????????????????????????????? | | ?????????????????????????????????????????????????? | | ?????????????????????????????????????????????????? | | ?????????????????????????????????????????????????? | | ?????????????????????????????????????????????????? | +----------------------------------------------------+ Best States ------------- Heat Dissipation 71 Energy Generation 36 Energy Capacity 530 Matter Stores 300 Matter Capacity 300 Sight Range 22 Robot Scan Range 20 Terrain Scan Range 20 Terrain Scan Density 285 ECM Strength 1 Jamming Range 12 Armor Coverage 225 Propulsion Shielding 33 Evasion (%) 65 Targeting Accuracy 12 Melee Accuracy 8 Target Analysis 10 Core Analysis 6 Recoil Reduction 5 Matter Filtering 50 Offensive Hacking 48 Defensive Hacking 10 Authchip Count 1 Item Schematics ----------------- Graphene Brace | -8/Materials | Scanalyzed Adv. System Shield | -4/Extension | Hacked Robot Schematics ------------------ None Fabricated ------------ Nothing Repaired ---------- Lgt. Treads | 32% | -10/Materials Hvy. Assault Rifle | 74% | -8/Materials Arm. Treads | 38% | -8/Materials Arm. Treads | 48% | -8/Materials Imp. Medium Armor Plating | 2% | -7/Factory Graphene Brace | 37% | -4/Factory Studied --------- Arm. Treads | -8/Materials | Hacked Lgt. Treads | -8/Materials | Hacked Hvy. Assault Rifle | -8/Materials | Hacked Adv. Treads | -8/Materials | Hacked Imp. Treads | -8/Materials | Hacked Autogun | -8/Materials | Hacked Field Propulsion Drive | -5/Factory | Hacked Greatsword | -5/Factory | Hacked Imp. Hover Unit | -5/Factory | Hacked Impulse Thruster | -3/Research | Hacked Power Sword | -3/Research | Hacked Antigrav Array | -3/Research | Hacked Alien Tech Used ----------------- Core Expander Achievements -------------- Gun Specialist I Like You, Cogmind Challenges ------------ None Game ------ Seed WeaponsGravityKinecellerator Manual? 0 Play Time 02:57:07 Cumulative 174.2 hours Start 2025.11.02 @ 15:54:08 End 2025.11.02 @ 19:18:58 Sessions 3 Manual Loads 0 Difficulty Rogue Special Mode None Game No. 119 Rogue 119 Adventurer 0 Explorer 0 Win Type - Total 6 Types 4/0/1/1/0/0/0/0/0/0 Lore% 82 Gallery% 73 Achievement% 54 Wizard Run 0 Options --------- Layout 1 ASCII 0 Keyboard 0 Movement Mouse Keybinds 0 Fullscreen 2 Font 24/Smallcaps Map View 50x35 Zoom Use 0% Tactical HUD 1 Map Filters NONE Filters NONE Steam 1 RUN: 441bee74-fe9f-4cc4-8d78-4a65957659b3